{"text_format":"1","workbook":"xlsx","n_sheets":1,"sheets":["Calculo Enunciado CT nº 11"],"not_rendered":{"charts":0,"images":3,"macros":1,"external_links":0,"defined_names":1,"comments":0,"pivot_tables":0},"unopened":[],"bounds":{"document_bytes":16777216,"sheet_cells":100000,"rows_first":2000,"rows_last":500,"rows_between":2000,"halvings":0,"cell_chars":16384,"cell_head_chars":4096},"cells_cut":0,"cells_raw":0,"read":"whole","date_system":"1900"}

{"sheet":"Calculo Enunciado CT nº 11","index":0,"n_rows":41,"n_cols":15,"rows_kept":41,"cut":false,"hidden":false,"merged":[[24,1,24,4]]}
[null,null,"Planilha de Cálculo do Enunciado CT nº 11"]
[]
[null,null,null,false]
[30,"Processo"]
[20,"Lote"]
[1.5,"Item"]
[null,"Código Siga",null,"Menor Preço"]
[]
[null,"Nº","Empresa","Vlr. Cotado","Vlr. Valido",null,null,null,null,null,"Original","Adotada",null,null,"Menor preço por definição da Área Técnica"]
[null,{"$f":"IF(Tabela1[[#This Row],[Vlr. Cotado]]=\"\",\"\",ROW()-9)","v":""},null,null,{"$f":"IF(Tabela1[[#This Row],[Vlr. Cotado]]=\"\",\"\",\nIF(AND(MAX(Tabela1[Nº])=3,(MAX(Tabela1[Vlr. Cotado])/MIN(Tabela1[Vlr. Cotado]))>1.3,MAX(Tabela1[Vlr. Cotado])=Tabela1[[#This Row],[Vlr. Cotado]]),\"    Excluido\",\nIF(AND(MAX(Tabela1[Nº])=3,(MAX(Tabela1[Vlr. Cotado])/MIN(Tabela1[Vlr. Cotado]))<=1.3,MAX(Tabela1[Vlr. Cotado])=Tabela1[[#This Row],[Vlr. Cotado]]),Tabela1[[#This Row],[Vlr. Cotado]],\nIF(MAX(Tabela1[Nº])=4,Tabela1[[#This Row],[Vlr. Cotado]],\nIF(AND(MAX(Tabela1[Nº]),$K$12>25%),IF(OR(Tabela1[[#This Row],[Vlr. Cotado]]<$K$15,Tabela1[[#This Row],[Vlr. Cotado]]>$K$14),\"    Excluido\",Tabela1[[#This Row],[Vlr. Cotado]]),Tabela1[[#This Row],[Vlr. Cotado]])))))","v":""},null,"1 Critério",{"$f":"IFERROR(IF(MAX(Tabela1[Nº])<3,AVERAGE(Tabela1[Vlr. Cotado]),\"\"),\"\")","v":""},null,"Desvio Padrão",{"$f":"IFERROR(_xlfn.STDEV.S(Tabela1[Vlr. Cotado]),\"\")","v":""},{"$f":"IFERROR(_xlfn.STDEV.S(Tabela1[Vlr. Valido]),\"\")","v":""},null,null,"a) Quando coletados 2 (dois) preços: formar o preço de referência pela média aritmética dos valores obtidos"]
[null,{"$f":"IF(Tabela1[[#This Row],[Vlr. Cotado]]=\"\",\"\",ROW()-9)","v":""},null,null,{"$f":"IF(Tabela1[[#This Row],[Vlr. Cotado]]=\"\",\"\",\nIF(AND(MAX(Tabela1[Nº])=3,(MAX(Tabela1[Vlr. Cotado])/MIN(Tabela1[Vlr. Cotado]))>1.3,MAX(Tabela1[Vlr. Cotado])=Tabela1[[#This Row],[Vlr. Cotado]]),\"    Excluido\",\nIF(AND(MAX(Tabela1[Nº])=3,(MAX(Tabela1[Vlr. Cotado])/MIN(Tabela1[Vlr. Cotado]))<=1.3,MAX(Tabela1[Vlr. Cotado])=Tabela1[[#This Row],[Vlr. Cotado]]),Tabela1[[#This Row],[Vlr. Cotado]],\nIF(MAX(Tabela1[Nº])=4,Tabela1[[#This Row],[Vlr. Cotado]],\nIF(AND(MAX(Tabela1[Nº]),$K$12>25%),IF(OR(Tabela1[[#This Row],[Vlr. Cotado]]<$K$15,Tabela1[[#This Row],[Vlr. Cotado]]>$K$14),\"    Excluido\",Tabela1[[#This Row],[Vlr. Cotado]]),Tabela1[[#This Row],[Vlr. Cotado]])))))","v":""},null,"2 Critério",{"$f":"IFERROR(IF(\nAND(\nMAX(Tabela1[Nº])<4,\n(MAX(Tabela1[Vlr. Cotado])/MIN(Tabela1[Vlr. Cotado]))>1.3),\nAVERAGE(SMALL(Tabela1[Vlr. Cotado],{1;2})),\"\"),\"\")","v":""},null,"Média",{"$f":"IFERROR(AVERAGE(Tabela1[Vlr. Cotado]),\"\")","v":""},{"$f":"IFERROR(AVERAGE(Tabela1[Vlr. Valido]),\"\")","v":""},null,null,"b.1) Quando coletados 3 (três) preços, calculando\na razão entre o maior e o menor preços, se o resultado da divisão for superior a 30% (trinta por cento, ou seja, resultado da divisão maior do que 1,30), deverá ser descartado o maior preço e formado o preço de referência pela média aritmética entre os outros 2 (dois) preços coletados;"]
[null,{"$f":"IF(Tabela1[[#This Row],[Vlr. Cotado]]=\"\",\"\",ROW()-9)","v":""},null,null,{"$f":"IF(Tabela1[[#This Row],[Vlr. Cotado]]=\"\",\"\",\nIF(AND(MAX(Tabela1[Nº])=3,(MAX(Tabela1[Vlr. Cotado])/MIN(Tabela1[Vlr. Cotado]))>1.3,MAX(Tabela1[Vlr. Cotado])=Tabela1[[#This Row],[Vlr. Cotado]]),\"    Excluido\",\nIF(AND(MAX(Tabela1[Nº])=3,(MAX(Tabela1[Vlr. Cotado])/MIN(Tabela1[Vlr. Cotado]))<=1.3,MAX(Tabela1[Vlr. Cotado])=Tabela1[[#This Row],[Vlr. Cotado]]),Tabela1[[#This Row],[Vlr. Cotado]],\nIF(MAX(Tabela1[Nº])=4,Tabela1[[#This Row],[Vlr. Cotado]],\nIF(AND(MAX(Tabela1[Nº]),$K$12>25%),IF(OR(Tabela1[[#This Row],[Vlr. Cotado]]<$K$15,Tabela1[[#This Row],[Vlr. Cotado]]>$K$14),\"    Excluido\",Tabela1[[#This Row],[Vlr. Cotado]]),Tabela1[[#This Row],[Vlr. Cotado]])))))","v":""},null,"3 Critério",{"$f":"IFERROR(IF(\nAND(\nMAX(Tabela1[Nº])<4,\n(MAX(Tabela1[Vlr. Cotado])/MIN(Tabela1[Vlr. Cotado]))<1.31),\nAVERAGE(Tabela1[Vlr. Cotado]),\"\"),\"\")","v":""},null,"Coeficiente Varia",{"$f":"IFERROR(K10/K11,\"\")","v":""},{"$f":"IFERROR(L10/L11,\"\")","v":""},null,null,"b.2) Quando coletados 3 (três) preços, calculando\na razão entre o maior e o menor preços, se o resultado da divisão for inferior ou igual a 30% (trinta por cento, ou seja, resultado da divisão maior do que 1,30), deverá ser descartado o maior preço e formado o preço de referência pela média aritmética entre os outros 2 (dois) preços coletados;"]
[null,{"$f":"IF(Tabela1[[#This Row],[Vlr. Cotado]]=\"\",\"\",ROW()-9)","v":""},null,null,{"$f":"IF(Tabela1[[#This Row],[Vlr. Cotado]]=\"\",\"\",\nIF(AND(MAX(Tabela1[Nº])=3,(MAX(Tabela1[Vlr. Cotado])/MIN(Tabela1[Vlr. Cotado]))>1.3,MAX(Tabela1[Vlr. Cotado])=Tabela1[[#This Row],[Vlr. Cotado]]),\"    Excluido\",\nIF(AND(MAX(Tabela1[Nº])=3,(MAX(Tabela1[Vlr. Cotado])/MIN(Tabela1[Vlr. Cotado]))<=1.3,MAX(Tabela1[Vlr. Cotado])=Tabela1[[#This Row],[Vlr. Cotado]]),Tabela1[[#This Row],[Vlr. Cotado]],\nIF(MAX(Tabela1[Nº])=4,Tabela1[[#This Row],[Vlr. Cotado]],\nIF(AND(MAX(Tabela1[Nº]),$K$12>25%),IF(OR(Tabela1[[#This Row],[Vlr. Cotado]]<$K$15,Tabela1[[#This Row],[Vlr. Cotado]]>$K$14),\"    Excluido\",Tabela1[[#This Row],[Vlr. Cotado]]),Tabela1[[#This Row],[Vlr. Cotado]])))))","v":""},null,"4 Critério",{"$f":"IFERROR(IF(AND(MAX(Tabela1[Nº])>3,MAX(Tabela1[Nº])<5),MEDIAN(SMALL(Tabela1[Vlr. Cotado],1),SMALL(Tabela1[Vlr. Cotado],2),SMALL(Tabela1[Vlr. Cotado],3),SMALL(Tabela1[Vlr. Cotado],4)),\"\"),\"\")","v":""},null,null,null,null,null,null,"c) Quando coletados 4 (quatro) preços2 : formar o preço de referência, classificando os dados coletados do menor para o maior, calculando a média aritmética e a mediana dos preços, devendo prevalecer o menor resultado obtido"]
[null,{"$f":"IF(Tabela1[[#This Row],[Vlr. Cotado]]=\"\",\"\",ROW()-9)","v":""},null,null,{"$f":"IF(Tabela1[[#This Row],[Vlr. Cotado]]=\"\",\"\",\nIF(AND(MAX(Tabela1[Nº])=3,(MAX(Tabela1[Vlr. Cotado])/MIN(Tabela1[Vlr. Cotado]))>1.3,MAX(Tabela1[Vlr. Cotado])=Tabela1[[#This Row],[Vlr. Cotado]]),\"    Excluido\",\nIF(AND(MAX(Tabela1[Nº])=3,(MAX(Tabela1[Vlr. Cotado])/MIN(Tabela1[Vlr. Cotado]))<=1.3,MAX(Tabela1[Vlr. Cotado])=Tabela1[[#This Row],[Vlr. Cotado]]),Tabela1[[#This Row],[Vlr. Cotado]],\nIF(MAX(Tabela1[Nº])=4,Tabela1[[#This Row],[Vlr. Cotado]],\nIF(AND(MAX(Tabela1[Nº]),$K$12>25%),IF(OR(Tabela1[[#This Row],[Vlr. Cotado]]<$K$15,Tabela1[[#This Row],[Vlr. Cotado]]>$K$14),\"    Excluido\",Tabela1[[#This Row],[Vlr. Cotado]]),Tabela1[[#This Row],[Vlr. Cotado]])))))","v":""},null,null,null,null,"LS",{"$f":"IFERROR(K11*(100%+K12),\"\")","v":""},{"$f":"IFERROR(L11*(100%+L12),\"\")","v":""},null,null,"d) Quando coletados 5 (cinco) preços ou mais: formar o preço de referência, classificando os dados coletados do menor para o maior, obtendo o coeficiente de variação dos preços e calculando a média saneada"]
[null,{"$f":"IF(Tabela1[[#This Row],[Vlr. Cotado]]=\"\",\"\",ROW()-9)","v":""},null,null,{"$f":"IF(Tabela1[[#This Row],[Vlr. Cotado]]=\"\",\"\",\nIF(AND(MAX(Tabela1[Nº])=3,(MAX(Tabela1[Vlr. Cotado])/MIN(Tabela1[Vlr. Cotado]))>1.3,MAX(Tabela1[Vlr. Cotado])=Tabela1[[#This Row],[Vlr. Cotado]]),\"    Excluido\",\nIF(AND(MAX(Tabela1[Nº])=3,(MAX(Tabela1[Vlr. Cotado])/MIN(Tabela1[Vlr. Cotado]))<=1.3,MAX(Tabela1[Vlr. Cotado])=Tabela1[[#This Row],[Vlr. Cotado]]),Tabela1[[#This Row],[Vlr. Cotado]],\nIF(MAX(Tabela1[Nº])=4,Tabela1[[#This Row],[Vlr. Cotado]],\nIF(AND(MAX(Tabela1[Nº]),$K$12>25%),IF(OR(Tabela1[[#This Row],[Vlr. Cotado]]<$K$15,Tabela1[[#This Row],[Vlr. Cotado]]>$K$14),\"    Excluido\",Tabela1[[#This Row],[Vlr. Cotado]]),Tabela1[[#This Row],[Vlr. Cotado]])))))","v":""},null,null,null,null,"LI",{"$f":"IFERROR(K11*(100%-K12),\"\")","v":""},{"$f":"IFERROR(L11*(100%-L12),\"\")","v":""}]
[null,{"$f":"IF(Tabela1[[#This Row],[Vlr. Cotado]]=\"\",\"\",ROW()-9)","v":""},null,null,{"$f":"IF(Tabela1[[#This Row],[Vlr. Cotado]]=\"\",\"\",\nIF(AND(MAX(Tabela1[Nº])=3,(MAX(Tabela1[Vlr. Cotado])/MIN(Tabela1[Vlr. Cotado]))>1.3,MAX(Tabela1[Vlr. Cotado])=Tabela1[[#This Row],[Vlr. Cotado]]),\"    Excluido\",\nIF(AND(MAX(Tabela1[Nº])=3,(MAX(Tabela1[Vlr. Cotado])/MIN(Tabela1[Vlr. Cotado]))<=1.3,MAX(Tabela1[Vlr. Cotado])=Tabela1[[#This Row],[Vlr. Cotado]]),Tabela1[[#This Row],[Vlr. Cotado]],\nIF(MAX(Tabela1[Nº])=4,Tabela1[[#This Row],[Vlr. Cotado]],\nIF(AND(MAX(Tabela1[Nº]),$K$12>25%),IF(OR(Tabela1[[#This Row],[Vlr. Cotado]]<$K$15,Tabela1[[#This Row],[Vlr. Cotado]]>$K$14),\"    Excluido\",Tabela1[[#This Row],[Vlr. Cotado]]),Tabela1[[#This Row],[Vlr. Cotado]])))))","v":""}]
[null,{"$f":"IF(Tabela1[[#This Row],[Vlr. Cotado]]=\"\",\"\",ROW()-9)","v":""},null,null,{"$f":"IF(Tabela1[[#This Row],[Vlr. Cotado]]=\"\",\"\",\nIF(AND(MAX(Tabela1[Nº])=3,(MAX(Tabela1[Vlr. Cotado])/MIN(Tabela1[Vlr. Cotado]))>1.3,MAX(Tabela1[Vlr. Cotado])=Tabela1[[#This Row],[Vlr. Cotado]]),\"    Excluido\",\nIF(AND(MAX(Tabela1[Nº])=3,(MAX(Tabela1[Vlr. Cotado])/MIN(Tabela1[Vlr. Cotado]))<=1.3,MAX(Tabela1[Vlr. Cotado])=Tabela1[[#This Row],[Vlr. Cotado]]),Tabela1[[#This Row],[Vlr. Cotado]],\nIF(MAX(Tabela1[Nº])=4,Tabela1[[#This Row],[Vlr. Cotado]],\nIF(AND(MAX(Tabela1[Nº]),$K$12>25%),IF(OR(Tabela1[[#This Row],[Vlr. Cotado]]<$K$15,Tabela1[[#This Row],[Vlr. Cotado]]>$K$14),\"    Excluido\",Tabela1[[#This Row],[Vlr. Cotado]]),Tabela1[[#This Row],[Vlr. Cotado]])))))","v":""}]
[null,{"$f":"IF(Tabela1[[#This Row],[Vlr. Cotado]]=\"\",\"\",ROW()-9)","v":""},null,null,{"$f":"IF(Tabela1[[#This Row],[Vlr. Cotado]]=\"\",\"\",\nIF(AND(MAX(Tabela1[Nº])=3,(MAX(Tabela1[Vlr. Cotado])/MIN(Tabela1[Vlr. Cotado]))>1.3,MAX(Tabela1[Vlr. Cotado])=Tabela1[[#This Row],[Vlr. Cotado]]),\"    Excluido\",\nIF(AND(MAX(Tabela1[Nº])=3,(MAX(Tabela1[Vlr. Cotado])/MIN(Tabela1[Vlr. Cotado]))<=1.3,MAX(Tabela1[Vlr. Cotado])=Tabela1[[#This Row],[Vlr. Cotado]]),Tabela1[[#This Row],[Vlr. Cotado]],\nIF(MAX(Tabela1[Nº])=4,Tabela1[[#This Row],[Vlr. Cotado]],\nIF(AND(MAX(Tabela1[Nº]),$K$12>25%),IF(OR(Tabela1[[#This Row],[Vlr. Cotado]]<$K$15,Tabela1[[#This Row],[Vlr. Cotado]]>$K$14),\"    Excluido\",Tabela1[[#This Row],[Vlr. Cotado]]),Tabela1[[#This Row],[Vlr. Cotado]])))))","v":""}]
[null,{"$f":"IF(Tabela1[[#This Row],[Vlr. Cotado]]=\"\",\"\",ROW()-9)","v":""},null,null,{"$f":"IF(Tabela1[[#This Row],[Vlr. Cotado]]=\"\",\"\",\nIF(AND(MAX(Tabela1[Nº])=3,(MAX(Tabela1[Vlr. Cotado])/MIN(Tabela1[Vlr. Cotado]))>1.3,MAX(Tabela1[Vlr. Cotado])=Tabela1[[#This Row],[Vlr. Cotado]]),\"    Excluido\",\nIF(AND(MAX(Tabela1[Nº])=3,(MAX(Tabela1[Vlr. Cotado])/MIN(Tabela1[Vlr. Cotado]))<=1.3,MAX(Tabela1[Vlr. Cotado])=Tabela1[[#This Row],[Vlr. Cotado]]),Tabela1[[#This Row],[Vlr. Cotado]],\nIF(MAX(Tabela1[Nº])=4,Tabela1[[#This Row],[Vlr. Cotado]],\nIF(AND(MAX(Tabela1[Nº]),$K$12>25%),IF(OR(Tabela1[[#This Row],[Vlr. Cotado]]<$K$15,Tabela1[[#This Row],[Vlr. Cotado]]>$K$14),\"    Excluido\",Tabela1[[#This Row],[Vlr. Cotado]]),Tabela1[[#This Row],[Vlr. Cotado]])))))","v":""},null,"Média",{"$f":"AVERAGE(Tabela1[Vlr. Cotado])","v":{"$error":"#DIV/0!"}}]
[null,null,{"$f":"IF(MAX(Tabela1[Nº])<>4,\"\",\nIF(MAX(Tabela1[Nº])=4,\nIF(MEDIAN(SMALL(Tabela1[Vlr. Cotado],1),SMALL(Tabela1[Vlr. Cotado],2),SMALL(Tabela1[Vlr. Cotado],3),SMALL(Tabela1[Vlr. Cotado],4))<(AVERAGE(Tabela1[Vlr. Cotado])),\"Mediana\",\"Média\")))","v":""},{"$f":"IFERROR(\nIF(D3=TRUE,MIN(Tabela1[Vlr. Cotado]),\nIF(MAX(Tabela1[Nº])<3,AVERAGE(Tabela1[Vlr. Cotado]),\nIF(AND(MAX(Tabela1[Nº])=3,(MAX(Tabela1[Vlr. Cotado])/MIN(Tabela1[Vlr. Cotado]))>1.3),AVERAGE(SMALL(Tabela1[Vlr. Cotado],{1;2})),\nIF(AND(MAX(Tabela1[Nº])=3,(MAX(Tabela1[Vlr. Cotado])/MIN(Tabela1[Vlr. Cotado]))<1.31),AVERAGE(Tabela1[Vlr. Cotado]),\nIF(AND(MAX(Tabela1[Nº])=4,(MEDIAN(SMALL(Tabela1[Vlr. Cotado],1),SMALL(Tabela1[Vlr. Cotado],2),SMALL(Tabela1[Vlr. Cotado],3),SMALL(Tabela1[Vlr. Cotado],4)))<AVERAGE(Tabela1[Vlr. Cotado])),MEDIAN(SMALL(Tabela1[Vlr. Cotado],1),SMALL(Tabela1[Vlr. Cotado],2),SMALL(Tabela1[Vlr. Cotado],3),SMALL(Tabela1[Vlr. Cotado],4)),\nIF(AND(MAX(Tabela1[Nº])=4,(MEDIAN(SMALL(Tabela1[Vlr. Cotado],1),SMALL(Tabela1[Vlr. Cotado],2),SMALL(Tabela1[Vlr. Cotado],3),SMALL(Tabela1[Vlr. Cotado],4)))>AVERAGE(Tabela1[Vlr. Cotado])),AVERAGE(Tabela1[Vlr. Cotado]),\nIF(MAX(Tabela1[Nº])>4,AVERAGE(Tabela1[Vlr. Valido]),AVERAGE(Tabela1[Vlr. Cotado])))))))),\"\")","v":""},{"$f":"IFERROR(IF(Tabela1[[#Totals],[Vlr. Cotado]]=\"\",SUBTOTAL(101,Tabela1[Vlr. Valido]),\"\"),\"\")","v":""},null,"Menor",{"$f":"MIN(Tabela1[Vlr. Cotado])","v":0}]
[null,null,{"$f":"IF(MAX(Tabela1[Nº])<>4,\"\",\nIF(MAX(Tabela1[Nº])=4,\nIF(MEDIAN(SMALL(Tabela1[Vlr. Cotado],1),SMALL(Tabela1[Vlr. Cotado],2),SMALL(Tabela1[Vlr. Cotado],3),SMALL(Tabela1[Vlr. Cotado],4))<(AVERAGE(Tabela1[Vlr. Cotado])),\"Média\",\"Mediana\")))","v":""},{"$f":"IF(MAX(Tabela1[Nº])<>4,\"\",\nIF(\nAND(MAX(Tabela1[Nº])=4,(MEDIAN(SMALL(Tabela1[Vlr. Cotado],1),SMALL(Tabela1[Vlr. Cotado],2),SMALL(Tabela1[Vlr. Cotado],3),SMALL(Tabela1[Vlr. Cotado],4)))<AVERAGE(Tabela1[Vlr. Cotado])),\nAVERAGE(Tabela1[Vlr. Cotado]),\nMEDIAN(SMALL(Tabela1[Vlr. Cotado],1),SMALL(Tabela1[Vlr. Cotado],2),SMALL(Tabela1[Vlr. Cotado],3),SMALL(Tabela1[Vlr. Cotado],4))))","v":""},null,null,"Maior",{"$f":"MAX(Tabela1[Vlr. Cotado])","v":0}]
[]
[null,null,null,null,null,null,"Maior / Menor",{"$f":"H21/H20","v":{"$error":"#DIV/0!"}}]
[null,"Procedimento Adotado:"]
[null,{"$f":"IFERROR(\nIF(D3=TRUE,O9,\nIF(MAX(Tabela1[Nº])<1,\"\",\nIF(MAX(Tabela1[Nº])<3,O10,\nIF(AND(MAX(Tabela1[Nº])=3,(MAX(Tabela1[Vlr. Cotado])/MIN(Tabela1[Vlr. Cotado]))>1.3),O11,\nIF(AND(MAX(Tabela1[Nº])=3,(MAX(Tabela1[Vlr. Cotado])/MIN(Tabela1[Vlr. Cotado]))<1.31),O12,\nIF(MAX(Tabela1[Nº])=4,O13,\nO14)))))),\"\")","v":""}]
[]
[]
[]
[]
[]
[]
[]
[]
[]
[]
[]
[]
[]
[]
[]
[null,null,null,"F.041"]